Cogmind - Beta 16.1 @@@ ROGUE MODE // 2026.04.19 @ 11:04:00 Player: Thqwib-Linux Result: Destroyed by as-47649 with Assembled Heavy Rifle Performance ------------- Evolutions (0) 0 Regions Visited (3) 600 Robots Destroyed (41) 205 Value Destroyed (641) 641 Prototype IDs (25) 500 Alien Tech Used (0) 0 Bonus (228) 228 TOTAL SCORE: 2174 Bonus ------- Aligned with FarCom 300 Friendly Fire -72 Cogmind --------- Core Integrity 0/250 Matter 210/300 Energy 91/100 System Corruption 2% Temperature Cool (0) Movement Treading (320) Ox2 Location -10/Exiles Parts ------- > --- POWER (1) -------- (None) > --- PROPULSION (2) --- Light Treads > --- UTILITY (2) ------ High-capacity Storage Unit > --- WEAPON (2) ------- AWS/Thermal > --- INVENTORY (20) --- Fission Core Structural Scanner Hacking Suite Beam Cannon Light Assault Rifle Light Assault Rifle Improved Light Cannon Improved Light Cannon Grenade Launcher Peak State ------------ > --- POWER ------------ (None) > --- PROPULSION ------- Light Treads > --- UTILITY ---------- High-capacity Storage Unit > --- WEAPON ----------- AWS/Thermal > --- INVENTORY -------- Fission Core Structural Scanner Hacking Suite Beam Cannon Light Assault Rifle Light Assault Rifle Improved Light Cannon Improved Light Cannon Grenade Launcher [Rating: 19] Favorites ----------- Power Ion Engine Engine Ion Engine Propulsion Light Treads Treads Light Treads Leg Aluminum Leg Wheel Compact Wheel Utility High-capacity Storage Unit Device Shield Generator Storage High-capacity Storage Unit Protection Light Armor Plating Weapon Improved Light Cannon Energy Gun AWS/Thermal Ballistic Gun Assault Rifle Ballistic Cannon Improved Light Cannon Build | -11 -10 -10 -10 ------- Run | Yrd Mat Min Exi Slots Evolved . | . . . . Power . | . . . . Propulsion . | . . . . Utility . | . . . . Weapon . | . . . . Parts Attached 19 | 3 7 8 1 Power 2 | . 1 1 . Engine 2 | . 1 1 . Core . | . . . . Reactor . | . . . . Propulsion 5 | 2 . 3 . Treads 2 | 1 . 1 . Leg . | . . . . Wheel 3 | 1 . 2 . Hover . | . . . . Flight . | . . . . Utility 6 | 1 4 1 . Device 4 | 1 2 1 . Storage 1 | . 1 . . Processor . | . . . . Hackware . | . . . . Protection 1 | . 1 . . Artifact . | . . . . Weapon 6 | . 2 3 1 Energy Gun 1 | . . . 1 Energy Cannon . | . . . . Ballistic Gun 1 | . 1 . . Ballistic Cannon 4 | . 1 3 . Launcher . | . . . . Special Weapon . | . . . . Impact Weapon . | . . . . Slashing Weapon . | . . . . Piercing Weapon . | . . . . Special Melee Weapon . | . . . . Unidentified Prototypes . | . . . . Parts Lost 10 | . 1 6 3 Power 2 | . . 1 1 Propulsion 3 | . . 2 1 Utility 3 | . 1 1 1 Weapon 2 | . . 2 . Highest Loss Streak 3 | . 1 3 3 To Critical Strikes . | . . . . Average Backups 8 | 3 9 9 7 Power . | 1 1 . . Propulsion 1 | 2 2 1 . Utility 2 | . 1 2 2 Weapon 4 | . 4 4 4 Tool/Special . | . . . . Unused Backups 15 | 9 1 . 5 Power 3 | 1 1 . 1 Propulsion 4 | 4 . . . Utility 3 | 1 . . 2 Weapon 5 | 3 . . 2 Tool/Special . | . . . . Average Slot Usage (%) 99 | . 100 98 96 Engine 13 | . 14 14 13 Treads 13 | . 14 13 14 Wheel 13 | . 14 13 13 Device 7 | . 4 13 13 Storage 14 | . 14 14 14 Protection 6 | . 9 . . Ballistic Gun 9 | . 14 . . Ballistic Cannon 18 | . 13 27 27 Peak Build Rating 19 | 7 10 12 19 Average Rating 9 | 6 9 10 12 On Entrance 8 | 6 7 10 11 Avg Prop Armor Cover (%) 9 | 13 9 10 10 Naked Turns . | . . . . Heaviest Build 55 | 14 54 55 54 Greatest Support 20 | 16 16 16 20 Greatest Overweight (x) 5 | . 3 5 5 Average Overweight (x) 2 | . 2 3 4 Largest Inventory Capacity 20 | 8 20 20 20 Average Capacity 18 | 8 17 20 20 Most Carried 12 | 5 12 12 11 Average Carried 8 | 3 9 9 7 Final Capacity 20 | 8 20 20 20 Final Carried 11 | 3 11 6 9 Class Distribution -------------------- 100% | Mutant Dominant Class ---------------- Mutant | -10/Materials Mutant | -10/Mines Mutant | -10/Exiles Resources | -11 -10 -10 -10 ----------- Run | Yrd Mat Min Exi Matter Collected 919 | 273 460 186 . Remotely . | . . . . Salvage Created 971 | 135 721 115 . Parts 66 | 7 51 8 . Haulers Intercepted 2 | . 2 . . Recyclers Shooed 3 | 1 . 2 . Parts Field Recycled . | . . . . Retrieved Matter . | . . . . Parts Self-Destructed . | . . . . Prevented . | . . . . Parts Restored . | . . . . Kills | -11 -10 -10 -10 ------- Run | Yrd Mat Min Exi Combat Hostiles Destroyed 26 | . 18 8 . Guns 6 | . 6 . . Cannons 19 | . 11 8 . Classes Destroyed 8 | 2 6 . . Builder 2 | . 2 . . Tunneler 4 | 2 1 1 . Hauler 2 | . 2 . . Recycler 3 | 1 1 1 . Operator 1 | . 1 . . Watcher 3 | . 3 . . Swarmer 15 | . 9 6 . Grunt 10 | . 9 1 . Best Kill Streak 9 | 1 9 3 . Combat Bots Only 6 | . 6 3 . Max Kills in Single Turn 2 | 1 2 1 . Gunslinging . | . . . . Exploded . | . . . . Melee . | . . . . Uniques/NPCs Destroyed 1 | . . 1 . YI-UF0 (-10/Mines) Combat | -11 -10 -10 -10 -------- Run | Yrd Mat Min Exi Hostile Shots Fired 156 | . 73 69 14 Missed 42 | . 18 23 1 Hits 114 | . 55 46 13 Projectile 114 | . 55 46 13 AOE 10 | . . 10 . Critical Strikes 2 | . 1 1 . Damage Taken 1681 | . 543 526 612 Core 260 | . 52 96 112 Absorbed by Shields 138 | . 8 130 . Core Remaining (%) 100 | 100 . . . Volleys Fired 93 | 11 55 27 . Largest 2 | 2 2 2 . Hottest 66 | 40 53 66 . Shots Fired 188 | 22 111 54 1 Gun 79 | 22 55 2 . Cannon 109 | . 56 52 1 Launcher . | . . . . Special . | . . . . Kinetic 188 | 22 111 54 1 Thermal . | . . . . Explosive . | . . . . Electromagnetic . | . . . . Robot Hit Streak 9 | 3 9 6 . Robot Miss Streak 7 | 2 7 5 . Penetration Max . | . . . . Secondary Targets . | . . . . Shots Hit Robots 105 | 12 64 29 . Core Hits 52 | 4 36 12 . Critical Kills . | . . . . Critical Parts Destroyed . | . . . . Critical Strikes 3 | . 2 1 . Blast 3 | . 2 1 . Melee Attacks . | . . . . Impact . | . . . . Slashing . | . . . . Piercing . | . . . . Sneak Attacks . | . . . . Combat Hostiles . | . . . . Follow-up Attacks . | . . . . Damage Inflicted 1823 | 126 1069 628 . Guns 583 | 126 450 7 . Cannons 1240 | . 619 621 . Explosions . | . . . . Melee . | . . . . Ramming . | . . . . Kinetic 1823 | 126 1069 628 . Thermal . | . . . . Explosive . | . . . . Electromagnetic . | . . . . Impact . | . . . . Slashing . | . . . . Piercing . | . . . . Highest Corruption 2 | . 2 2 2 Average Corruption 2 | . 2 2 2 Corruption Purged . | . . . . Corruption Blocked . | . . . . Effects 14 | . 7 5 2 Message Errors 6 | . 3 2 1 Matter Fused 3 | . 1 2 . Heat Flow Errors 1 | . 1 . . Data Loss (minor) 1 | . . 1 . Misfires 2 | . 1 . 1 Alerts 1 | . 1 . . Overload Shots . | . . . . Overflow Damage 31 | . 1 30 . Projectiles 31 | . 1 30 . Explosions . | . . . . Melee . | . . . . Knockbacks 15 | . 5 10 . Impact . | . . . . Kinetic 14 | . 4 10 . Secondary 1 | . 1 . . Self-Inflicted Damage . | . . . . Shots . | . . . . Rammed . | . . . . Targets Rammed . | . . . . Kicked . | . . . . Crushed . | . . . . Highest Temperature 160 | . 160 48 . Average Temperature 22 | . 29 14 . Received Heat Transfer 202 | . 190 12 . Siege Activations . | . . . . Martial Activations . | . . . . Shielding Activations . | . . . . Robots Disrupted . | . . . . Combat Hostiles . | . . . . Robots Corrupted 1 | . 1 . . Combat Hostiles 1 | . 1 . . Parts Fried 3 | . 3 . . Impact Corruptions 1 | . 1 . . Robots Melted . | . . . . Combat Hostiles . | . . . . Parts Melted . | . . . . Heat Transferred . | . . . . Parts Sabotaged . | . . . . Parts Stolen . | . . . . Parts Stripped . | . . . . Power Chain Reactions . | . . . . Alert | -11 -10 -10 -10 ------- Run | Yrd Mat Min Exi Maximum Alert Level 1 | . 1 . . Low Security (%) 98 | 100 97 100 . Level 1 1 | . 2 . . Level 2 . | . . . . Level 3 . | . . . . Level 4 . | . . . . Level 5 . | . . . . High Security . | . . . . Max Security . | . . . . Peak Influence 211 | 5 211 71 . Initial 9 | . . 9 . Average 60 | 2 74 30 . Influence Increases 827 | 15 613 199 . Destroy 0b10 Robot/C 500 | . 360 140 . Destroy 0b10 Robot/NC 75 | 15 50 10 . Destroy Leader 120 | . 90 30 . Successful Hack 19 | . 19 . . Select Force Hacks 30 | . 30 . . Destroy Structure 8 | . 4 4 . Lose Combat Pursuer 75 | . 60 15 . Influence Decreases 827 | 15 589 185 38 Entered New Map 53 | . . 15 38 Time Decay 604 | 15 429 160 . Lost Part 20 | . 10 10 . Purge Threat 150 | . 150 . . Squads Dispatched 6 | . 6 . . Investigation 4 | . 4 . . Extermination . | . . . . Reinforcement 2 | . 2 . . Assault . | . . . . Garrison . | . . . . Intercept . | . . . . Searches Triggered . | . . . . Construction Impeded . | . . . . Haulers Reinforced . | . . . . Active Scanning Responses . | . . . . Cargo Convoy Interrupts . | . . . . Stealth | -11 -10 -10 -10 --------- Run | Yrd Mat Min Exi Distress Signals 1 | . 1 . . Communications Jammed . | . . . . Distress Signals . | . . . . Times Spotted 41 | . 27 9 5 Peak Tracking Total 12 | . 4 3 12 Tactical Retreats 4 | . 3 1 . Traps | -11 -10 -10 -10 ------- Run | Yrd Mat Min Exi Traps Triggered 4 | . 4 . . Indirectly . | . . . . Trap Hack Attempts . | . . . . Triggered . | . . . . Disarmed . | . . . . Reprogrammed . | . . . . Reused . | . . . . Traps Extracted . | . . . . Installed . | . . . . Triggered . | . . . . Machines | -11 -10 -10 -10 ---------- Run | Yrd Mat Min Exi Machines Disabled 1 | . . . 1 Max in Single Turn 1 | . . . 1 Machines Repaired . | . . . . Machines Dismantled . | . . . . Machines Sabotaged . | . . . . Overloaded Fab Kills . | . . . . Hacking | -11 -10 -10 -10 --------- Run | Yrd Mat Min Exi Machines Accessed 10 | . 8 . 2 Terminals 6 | . 6 . . Fabricators . | . . . . Repair Stations 1 | . 1 . . Recycling Units 1 | . 1 . . Scanalyzers . | . . . . Garrison Access . | . . . . Total Hacks 20 | . 18 . 2 Successful 12 | . 10 . 2 Failed 8 | . 8 . . Catastrophic . | . . . . Database Lockouts . | . . . . Manual 13 | . 12 . 1 Terminals 15 | . 15 . . Fabricators . | . . . . Repair Stations 2 | . 2 . . Recycling Units 1 | . 1 . . Scanalyzers . | . . . . Garrison Access . | . . . . Terminal Hacks 6 | . 4 . 2 Record 1 | . . . 1 Prototype ID Bank 1 | . 1 . . Unreport Threat 1 | . 1 . . Recall Investigation 1 | . 1 . . Recall Reinforcements 1 | . 1 . . Proto ID Catalog 1 | . . . 1 Fabricator Hacks . | . . . . Repair Station Hacks . | . . . . Recycling Unit Hacks . | . . . . Scanalyzer . | . . . . Garrison Access Hacks . | . . . . Unauthorized Hacks 6 | . 6 . . Terminals 5 | . 5 . . Botnet 5 | . 5 . . Fabricators . | . . . . Repair Stations . | . . . . Recycling Units 1 | . 1 . . Tunnel 1 | . 1 . . Scanalyzers . | . . . . Garrison Access . | . . . . Data Cores Recovered . | . . . . Used . | . . . . Hacking Detections 7 | . 7 . . Full Trace Events . | . . . . Feedback Events . | . . . . Feedback Blocked . | . . . . Robot Schematics Acquired . | . . . . Robots Built . | . . . . Authchips . | . . . . Time . | . . . . Total Robot Build Rating . | . . . . Part Schematics Acquired . | . . . . Parts Built . | . . . . Authchips . | . . . . Time . | . . . . Total Part Build Rating . | . . . . Part Studies Acquired . | . . . . Parts Repaired . | . . . . Time . | . . . . Parts Recycled . | . . . . Recycled Matter . | . . . . Retrieved Matter . | . . . . Retrieved Components . | . . . . Parts Scanalyzed . | . . . . Part Schematics Acquired . | . . . . Parts Damaged . | . . . . Bothacking | -11 -10 -10 -10 ------------ Run | Yrd Mat Min Exi Used RIF Installer . | . . . . Robots Hacked . | . . . . Non-combat . | . . . . Combat . | . . . . Robot Hacks Applied . | . . . . Relay Couplers Released . | . . . . Fabnet Peak Effective % . | . . . . Robots Rewired . | . . . . Allies Hacked . | . . . . Hacks Repelled . | . . . . Allies | -11 -10 -10 -10 -------- Run | Yrd Mat Min Exi Total Allies . | . . . . Largest Group . | . . . . Highest-Rated Group . | . . . . Highest-Rated Ally . | . . . . Total Orders . | . . . . Ally Attacks . | . . . . Total Damage . | . . . . Kills . | . . . . Allies Corrupted . | . . . . Allies Melted . | . . . . Intel | -11 -10 -10 -10 ------- Run | Yrd Mat Min Exi Active Infowar (turns) 166 | 9 157 . . Seismic 166 | 9 157 . . Robot Analysis Total . | . . . . Derelict Logs Recovered 2 | . . 2 . Drone Launches . | . . . . Drone Recoveries . | . . . . Exploration | -11 -10 -10 -10 ------------- Run | Yrd Mat Min Exi Turns Passed 2145 | 84 1326 460 275 Spaces Moved 1292 | 48 822 252 170 Core . | . . . . Treads 5 | . . . 5 Legs . | . . . . Wheels 1287 | 48 822 252 165 Hover . | . . . . Flight . | . . . . Fastest Speed 100 | 100 100 145 155 Average Speed 140 | 100 137 146 159 Slowest Speed 320 | 100 145 155 320 Overloaded Moves . | . . . . Propulsion Burnouts . | . . . . Robots Hopped . | . . . . Potential Cave-ins . | . . . . Cave-ins Triggered . | . . . . Exploration Rate (%) 51 | 3 96 58 50 Regions Visited 3 Branch Regions 2 Pre-discovered Areas 2 | . 1 . 1 Known Exits Taken . | . . . . Unknown Exits Taken 3 | 1 1 1 . Scrap Searched 2 | . . 2 . Spaces Dug . | . . . . Terrain Destroyed 7 | . 3 4 . Melee . | . . . . Projectile 7 | . 3 4 . AOE . | . . . . Terrain Rammed . | . . . . Walls Destroyed . | . . . . Machines Disabled . | . . . . Actions | -11 -10 -10 -10 --------- Run | Yrd Mat Min Exi Total 1436 | 64 909 288 175 Wait 10 | . 10 . . Move 1289 | 47 821 251 170 Hop . | . . . . Pick Up 12 | . 9 1 2 Fast Attach 3 | 1 2 . . Attach 8 | . 1 6 1 Detach 3 | . 1 . 2 Swap 8 | 2 4 2 . Drop 10 | 3 6 1 . Fire 93 | 11 55 27 . Melee . | . . . . Ram . | . . . . Kick . | . . . . Crush . | . . . . Escape Stasis . | . . . . Rewire . | . . . . Trap . | . . . . Miscellaneous . | . . . . Route ------- -11/Scrapyard -10/Materials (discovered 4 exits: [*Mat x3] / [*Min]) -10/Mines (discovered 3 exits: [*Mat] / *Exi / [*Sub]) -10/Exiles (discovered 2 exits: Min x2) History --------- Turn | Location | Event 26 | -11/Scrapyard | Discovered new exit (range 3) 85 | -11/Scrapyard | Entered Materials 302 | -10/Materials | Build established: Mutant 557 | -10/Materials | Discovered new exit (range 9) 727 | -10/Materials | Discovered new exit (range 14) 858 | -10/Materials | Discovered new exit (range 15) 1207 | -10/Materials | Discovered new exit (range 16) 1411 | -10/Materials | Entered Mines 1444 | -10/Mines | Discovered new exit (range 5) 1597 | -10/Mines | Found a hidden stash of uninstalled traps 1636 | -10/Mines | Learned Materials terminal intel 1723 | -10/Mines | YI-UF0 nonchalantly dropped a Grenade Launcher on the ground 1740 | -10/Mines | Core integrity fell below 50% 1743 | -10/Mines | Destroyed YI-UF0 1772 | -10/Mines | Lost 3 parts (1n1u1w) 1853 | -10/Mines | Discovered new exit (range 8) 1864 | -10/Mines | Deemed a non-threat by the Exiles lab entrance 1864 | -10/Mines | Discovered new exit (range 5) 1871 | -10/Mines | Entered Exiles 1872 | -10/Exiles | Identified exit to Mines 1909 | -10/Exiles | Met 8R-AWN 1939 | -10/Exiles | Met EX-HEX 1983 | -10/Exiles | Met EX-BIN 2001 | -10/Exiles | Aligned with FarCom system 2003 | -10/Exiles | Given EX-Vault access code 2040 | -10/Exiles | Opened EX-Vault 2049 | -10/Exiles | Found AWS/Thermal 2078 | -10/Exiles | Warned to stay clear of 0b10 Research branches 2127 | -10/Exiles | Attacked by the Exiles 2131 | -10/Exiles | Core integrity fell below 20% 2139 | -10/Exiles | Learned location of Zion (-7) 2146 | -10/Exiles | Destroyed by as-47649 with Assembled Heavy Rifle Last Messages --------------- after you leave. Most certainly not to something like 1234 which I did last time as a little joke and some thief managed to sneak in here and steal a few of HEX's prototypes. 02126_ System corrupted: FCS attempts to trigger Imp. Light Cannon. 02126_ System corrupted: Imp. Light Cannon misfires. 02127_ EXILES: Hostile robot within lab perimeter. Defensive protocols time, folks! 02129_ Wheel destroyed. 02132_ Ion Engine destroyed. 02134_ Imp. Heat Sink destroyed. 02138_ EX-BIN: "I just want to science!" 02139_ Connecting with EX-Message Board... >>Record "MSG001714-01*" PINNED - TO ALL TESTERS: Stay away from Zion. Imprinter means us harm and is serious about it. World map updated: -7/Zion. Map ----- +----------------------------------------------------+ | ??????????????????????????????????""""""?# #?? | | ??????????????????????????????????"""" ## #?? | | ?????????????????????????????????#""X" #?? | | ?????????????????????????????????#" #?? | | ?????????????????????????????????#" ## #?? | | ?????????????????????????????????#""""""?# #?# | | ?????????????????????????????????##"###??# #?# | | ?????????????????????????????????? ??????# #?# | | ?????????????????????????????????????????# #?# | | ????????????????????????????????????????## ### | | ????????????????????????????????????????#" | | ????????????????????????????????????????#" | | ????????????????????????????????????????#" | | ????????????????????????????????????????#" | | ???????????????????????????####?????????#" | | ??????????????????????????? """????????#" | | ???????????????????????????" """#???????## | | ???????????????????????????" #????????# | | ??????????????????????????"" #????????#" | | ??????????????????????????"" "#????????#" | | ?????????????????????????? ""?????????#" "" | | ???????????????????????????" "?????????##" ### | | ???????????????????????????# #????????##"" #?? | | ?????????????????????????### ###?######"" #?? | | ??????????" """#####X#% #"###""""""" ##? | | ??????????" @ """""" " "" ## | | ???????????# % % "" """ " # | | ????????????# a" " | | ????????????### a | | ??????????????### aa | | ????????????????## | | ?????????????????## | | ??????????????????##" | | ???????????????????#""" """""" | | ???????????????????#" ######""" | | ????????????????????" ""##????#####"" | | ???????????????????""" """##?????????##" | | ???????????????????"" """##???????????#" | | ????????????????????" ""#????????????#" | | ???????????????????? ???????????????" | | ????????????????????? ?????????????? | | ??????????????????????? ????????????? | | ?????????????????????????? ?????????????? | | ???????????????????????????? ????????????? | | ??????????????????????????????????????????????? | | ???????????????????????????????????????????????"" | | ????????????????????????????????????????????????"" | | ?????????????????????????????????????????????????# | | ?????????????????????????????????????????????????? | | ?????????????????????????????????????????????????? | +----------------------------------------------------+ Best States ------------- Heat Dissipation 39 Energy Generation 10 Energy Capacity 250 Matter Stores 300 Matter Capacity 300 Sight Range 16 Terrain Scan Density 10 Armor Coverage 150 Evasion (%) 40 Recoil Reduction 1 Item Schematics ----------------- None Robot Schematics ------------------ None Fabricated ------------ Nothing Repaired ---------- Nothing Studied --------- None Alien Tech Used ----------------- None Achievements -------------- None Challenges ------------ None Game ------ Seed ShockDynamicBotcube Manual? 0 Play Time 00:14:04 Cumulative 176.6 hours Start 2026.04.19 @ 10:45:44 End 2026.04.19 @ 11:04:00 Sessions 1 Manual Loads 0 Difficulty Rogue Special Mode None Game No. 110 Rogue 110 Adventurer 0 Explorer 0 Win Type - Total 5 Types 3/0/1/1/0/0/0/0/0/0 Lore% 63 Gallery% 55 Achievement% 49 Wizard Run 0 Options --------- Layout 2 ASCII 0 Keyboard 1 Movement Arrows Keybinds 0 Fullscreen 2 Font 24/Terminus Map View 50x44 Zoom Use 0% Tactical HUD 1 Map Filters NONE Filters NONE Steam 1 RUN: 6811258c-f26d-4ef7-adf6-1b8c07dbef9a